bitfinex/quotes_ETHUSD_20240924
["timestamp","ask_amount","ask_price","bid_price","bid_amount"]
[1727217462139,3.75833,2660.8,2660.4,0.0653495]
[1727217462140,1.5749639,2660.6,2660.4,0.0653495]
[1727217462289,4.70323767,2660.5,2660.2,3.7979764]
[1727217462488,0.78759323,2660.3,2660.2,3.7979764]
[1727217462733,1.73771938,2660.3,2660.2,3.7979764]
[1727217462937,3.74697977,2660.3,2660.2,0.0389564]
[1727217463115,5.53237685,2660.3,2660.2,0.0389564]
[1727217463300,3.95741295,2660.3,2660.2,0.0389564]
[1727217463501,2.91916426,2660.3,2660.2,3.7980664]
[1727217463726,1.73771938,2660.3,2660.2,0.0389564]
[1727217463905,2.91916426,2660.3,2660.2,0.0389564]
[1727217464097,2.91918617,2660.3,2660.2,0.0389564]
[1727217464295,5.53238471,2660.3,2660.2,0.0389564]
[1727217464492,5.08341977,2660.3,2660.2,0.0389564]
[1727217464696,6.65887296,2660.3,2660.2,0.0389564]
[1727217464949,5.08341977,2660.3,2660.2,0.0389564]
[1727217465155,6.65889685,2660.3,2660.2,0.0389564]
[1727217465306,6.6585515,2660.3,2660.2,0.0389564]
[1727217465510,6.65886524,2660.3,2660.2,0.0389564]
[1727217465725,5.08341977,2660.3,2660.2,0.0389564]
[1727217465909,7.05212465,2660.3,2660.2,0.0389564]
[1727217466261,5.08341977,2660.3,2660.2,0.0389564]
[1727217466754,6.66028931,2660.3,2660.2,0.0389564]
[1727217467527,2.92071789,2660.3,2660.2,3.7980664]
[1727217471294,2.92088489,2660.3,2660.2,3.7980664]
[1727217472134,1.73959993,2660.3,2660.2,3.7980664]
[1727217472335,3.31475592,2660.3,2660.2,3.7980664]
[1727217472740,5.37480514,2660.3,2660.2,0.0389564]
[1727217472935,3.79964915,2660.3,2660.2,0.0389564]
[1727217473438,3.79964915,2660.3,2660.2,0.10236768]
[1727217473603,3.79964915,2660.3,2660.2,0.0389564]
[1727217473797,3.79964915,2660.3,2660.2,0.10236768]
[1727217474035,5.76878139,2660.3,2660.2,0.0389564]
[1727217474213,5.76878139,2660.3,2660.2,0.10236768]
[1727217474414,5.76878139,2660.3,2660.2,0.0389564]
[1727217474925,5.76878139,2660.3,2660.2,0.10264771]
[1727217475947,5.76995438,2660.3,2660.2,0.10264771]
[1727217476315,3.13308808,2660.3,2660.2,0.10264771]
[1727217476550,3.3159234,2660.3,2660.2,0.10264771]
[1727217477437,3.13308808,2660.3,2660.2,0.10264771]
[1727217477639,1.74066953,2660.3,2660.2,0.10264771]
[1727217477824,3.31598652,2660.3,2660.2,0.10264771]
[1727217477997,4.17672215,2660.3,2660.2,0.10264771]
[1727217478198,2.7843036,2660.3,2660.2,0.10264771]
[1727217478404,4.35958077,2660.3,2660.2,0.10264771]
[1727217478715,4.17672215,2660.3,2660.2,0.10264771]
[1727217479047,5.75198604,2660.3,2660.2,0.10264771]
[1727217480222,4.17672215,2660.3,2660.2,0.10264771]
[1727217480614,5.75206097,2660.3,2660.2,0.10264771]
[1727217480849,4.17672215,2660.3,2660.2,0.10264771]
[1727217481017,5.75206444,2660.3,2660.2,0.10264771]
[1727217481363,0.8,2659.7,2659.3,3.76033]
[1727217481643,0.8,2659.7,2659.2,4.51896]
[1727217481644,1.18180707,2659.5,2659.4,3.7991964]
[1727217481849,1.74066953,2659.5,2659.4,3.7991964]
[1727217482273,2.52826209,2659.5,2659.4,3.7991964]
[1727217482568,0.78759256,2659.8,2659.6,4.51846]
[1727217482770,1.48151754,2659.7,2659.6,4.51846]
[1727217482952,0.69392498,2659.7,2659.6,4.51846]
[1727217483473,0.78759256,2659.8,2659.7,3.75982]
[1727217483628,0.78759256,2660.0,2659.7,1.13735842]
[1727217483830,2.52286877,2660.0,2659.9,4.51803]
[1727217484185,0.78759256,2660.2,2660.0,3.75939]
[1727217484468,1.4816822,2660.2,2660.1,4.893689]
[1727217484672,2.52281606,2660.2,2660.1,4.893689]
[1727217485323,1.82872642,2660.2,2660.1,4.893689]
[1727217487128,2.52281606,2660.2,2660.1,4.893689]
[1727217488438,0.69431523,2660.2,2660.1,4.893689]
[1727217488763,1.82989304,2660.3,2660.2,3.75911]
[1727217488925,1.82989304,2660.3,2660.2,3.81883809]
[1727217488926,2.52476148,2660.3,2660.2,3.81883809]
[1727217489130,1.73716892,2660.3,2660.2,3.81883809]
[1727217489967,2.52476666,2660.3,2660.2,3.81883809]
[1727217490321,2.52479022,2660.3,2660.2,3.81883809]
[1727217490927,1.73716892,2660.3,2660.2,3.81883809]
[1727217491744,2.91861922,2660.3,2660.2,3.81883809]
[1727217496287,1.73716892,2660.3,2660.2,3.81883809]
[1727217496490,2.91921499,2660.3,2660.2,0.05972809]
[1727217496791,7.19461279,2660.3,2660.0,3.75939]
[1727217496949,1.18218578,2660.1,2660.0,3.75939]
[1727217497147,2.9193547,2660.1,2660.0,0.05959469]
[1727217497564,3.12746925,2660.1,2660.0,0.05959469]
[1727217497774,6.51304035,2660.1,2660.0,0.05959469]
[1727217498088,8.22234818,2660.1,2659.8,3.75961]
[1727217498289,1.57676334,2659.9,2659.8,3.75961]
[1727217498453,1.39117431,2660.0,2659.9,0.05973433]
[1727217498647,1.39117431,2660.0,2659.8,3.81941583]
[1727217498648,3.99493894,2660.0,2659.8,3.81941583]
[1727217498861,2.25595281,2660.0,2659.9,0.05973433]
[1727217499065,5.3860136,2660.0,2659.9,0.05973433]
[1727217499250,3.80923154,2660.0,2659.9,3.81926433]
[1727217499453,3.13006079,2660.0,2659.9,4.65036433]
[1727217499683,2.92161364,2660.0,2659.9,4.65036433]
[1727217499883,2.92163905,2660.0,2659.9,4.65036433]
[1727217502275,3.71024873,2660.0,2659.9,4.65036433]
[1727217502460,3.57237494,2660.0,2659.9,5.49136176]
[1727217502795,1.74041166,2660.0,2659.9,5.49136176]
[1727217503293,2.92312805,2660.0,2659.9,5.49136176]
[1727217503586,2.92312805,2660.0,2659.9,4.65036433]
[1727217503793,1.74041166,2660.0,2659.9,4.65036433]
[1727217504198,2.92312805,2660.0,2659.9,4.65036433]
[1727217505054,1.74041166,2660.0,2659.9,4.65036433]
[1727217505278,2.92312805,2660.0,2659.9,4.65036433]
[1727217506571,2.92312805,2660.0,2659.9,5.49136176]
[1727217507986,3.13348124,2660.0,2659.9,5.49136176]
[1727217508281,1.74041166,2660.0,2659.9,4.65036433]
[1727217508469,2.92435086,2660.0,2659.9,4.65036433]
[1727217508800,2.92438233,2660.0,2659.9,4.65036433]
[1727217509881,3.13402703,2660.0,2659.9,4.65036433]
[1727217510199,2.92437577,2660.0,2659.9,4.65036433]
[1727217510603,3.13403913,2660.0,2659.9,4.65036433]
[1727217510761,3.13403614,2660.0,2659.9,4.65036433]
[1727217510962,1.74041166,2660.0,2659.9,4.65036433]
[1727217511258,2.52967115,2660.0,2659.9,5.49136176]
[1727217511462,1.74041166,2660.0,2659.9,5.49136176]
[1727217511962,2.92594736,2660.0,2659.9,5.49136176]
[1727217512184,2.92594736,2660.0,2659.9,4.65036433]
[1727217513714,1.74198923,2660.0,2659.9,4.65036433]
[1727217513883,2.92594736,2660.0,2659.9,4.65036433]
[1727217516319,2.92594736,2660.0,2659.9,3.81926433]
[1727217516516,2.92594736,2660.0,2659.9,0.05973433]
[1727217516676,4.73836019,2660.0,2659.9,0.05973433]
[1727217516880,10.13020413,2660.0,2659.4,0.0389564]
[1727217517221,8.49739398,2659.6,2659.4,0.0389564]
[1727217517408,3.25420436,2659.5,2659.4,0.0389564]
[1727217517608,7.09949701,2659.5,2659.4,0.0389564]
[1727217517796,5.12649167,2659.5,2659.4,0.0389564]
[1727217519194,7.09880333,2659.5,2659.4,0.0389564]
[1727217519410,5.12649167,2659.5,2659.4,0.0389564]
[1727217519609,7.09827559,2659.5,2659.4,0.0389564]
[1727217520830,5.12649167,2659.5,2659.4,0.0389564]
[1727217521339,5.12492275,2659.5,2659.4,0.09541607]
[1727217521553,5.12492275,2659.5,2659.4,0.0389564]
[1727217521713,5.12492275,2659.5,2659.4,0.09541607]
[1727217521714,7.09556691,2659.5,2659.4,0.09541607]
[1727217522534,2.52933994,2659.5,2659.4,3.7991964]
[1727217522903,2.52933994,2659.5,2659.4,3.85566741]
[1727217523296,0.78787659,2660.0,2659.5,0.7577]
[1727217523519,1.18229357,2660.5,2660.4,3.75883]
[1727217523700,2.75644416,2661.2,2660.4,3.75883]
[1727217523701,1.57578459,2661.0,2660.6,3.75855]
[1727217523899,1.18229357,2661.5,2661.4,3.75742]
[1727217524099,1.18229357,2661.8,2661.6,3.75705]
[1727217524343,1.96809357,2661.9,2661.6,3.75702]
[1727217524640,0.7858,2661.9,2661.7,0.05447206]
[1727217524943,0.98260936,2661.9,2661.7,0.05447206]
[1727217525120,1.44393981,2661.9,2661.6,3.75704]
[1727217525312,1.44393981,2661.9,2661.6,7.51408]
[1727217525514,0.26262334,2661.8,2661.7,3.81145206]
[1727217525721,1.24713045,2661.9,2661.8,3.75685]
[1727217526038,1.24713045,2661.9,2661.8,0.05440066]
[1727217526039,1.79713045,2661.9,2661.8,0.05440066]
[1727217526221,2.04007285,2661.9,2661.8,0.05440066]
[1727217526422,3.22236642,2661.9,2661.5,3.75727]
[1727217526902,0.55,2661.8,2661.6,0.05454347]
[1727217527111,2.05453021,2661.8,2661.3,3.75754]
[1727217527332,0.87223664,2661.8,2661.7,0.05447206]
[1727217527640,0.87223664,2661.8,2661.4,7.51475]
[1727217527842,0.66460019,2661.7,2661.4,3.75734]
[1727217528141,0.66460019,2661.7,2661.5,0.0537237]
[1727217534241,0.66460019,2661.7,2661.4,3.75733]
[1727217534722,0.0669619,2661.7,2661.5,0.05368387]
[1727217535560,0.0669619,2661.7,2661.5,3.81095387]
[1727217535927,0.0669619,2661.7,2661.5,0.05368387]
[1727217538422,0.0669619,2661.7,2661.5,3.81088387]
[1727217538730,0.0669619,2661.7,2661.6,3.75713]
[1727217539130,0.0669619,2661.7,2661.6,0.05361246]
[1727217539471,0.0669619,2661.7,2661.5,3.75715]
[1727217539687,0.32223664,2661.8,2661.6,0.05361246]
[1727217540371,0.32223664,2661.8,2661.1,3.75774]
[1727217540538,4.34852925,2661.9,2661.7,0.05359392]
[1727217540746,4.34852925,2661.9,2661.5,3.75726]
[1727217540990,3.1013988,2661.6,2660.3,0.8061]
[1727217541288,3.1013988,2661.6,2659.4,1.97980239]
[1727217541289,4.53475,2660.6,2660.4,0.04733906]
[1727217541429,3.8775988,2660.6,2660.4,0.04733906]
[1727217541631,0.7762,2660.6,2660.2,3.75907]
[1727217541884,4.66216928,2660.9,2660.5,0.04391501]
[1727217542045,4.66216928,2660.9,2660.2,0.55754054]
[1727217542046,3.0,2660.8,2660.4,3.75882]
[1727217542370,3.0,2660.8,2660.6,0.04384355]
[1727217542787,3.0,2660.8,2660.4,3.75882]
[1727217542943,3.0,2660.8,2660.7,0.04377209]
[1727217543281,3.0,2660.8,2660.4,3.75872]
[1727217543636,3.0,2660.8,2660.5,0.04391501]
[1727217543976,0.7762,2660.9,2660.5,0.04391501]
[1727217543977,3.7762,2660.9,2660.5,0.04391501]
[1727217544335,8.79458329,2660.9,2660.5,0.04391501]
[1727217545438,3.75839,2660.8,2660.5,0.04391501]
[1727217545761,4.30855,2660.6,2660.5,0.04391501]
[1727217545943,0.55,2660.5,2660.1,3.75913]
[1727217546343,4.53484,2660.6,2660.0,3.75936]
[1727217546344,0.7762,2660.6,2660.0,3.75936]
[1727217546565,0.7762,2660.6,2660.2,3.75911]
[1727217547667,0.7762,2660.6,2660.2,3.75904]
[1727217547987,0.7762,2660.6,2660.3,3.75888]
[1727217548287,0.7762,2660.6,2660.2,7.51808]
[1727217548432,0.7762,2660.6,2660.2,3.75904]
[1727217548633,0.7762,2660.6,2660.3,0.04405796]
[1727217548836,0.7762,2660.6,2660.3,3.75897]
[1727217549073,5.04482377,2660.9,2660.4,0.04398649]
[1727217549284,5.02905329,2660.9,2660.2,3.75905]
[1727217549431,5.81362377,2660.9,2660.5,0.04391501]
[1727217549636,8.02564626,2660.8,2660.3,3.75889]
[1727217549845,7.52693,2660.9,2660.4,3.80279649]
[1727217550249,3.0,2660.7,2660.4,0.04398649]
[1727217550881,3.0,2660.8,2659.9,5.7595]
[1727217551083,3.0,2660.8,2660.5,0.04429196]
[1727217551384,3.0,2660.8,2660.4,3.75882]
[1727217551697,3.0,2660.8,2660.5,0.04429196]
[1727217551897,6.75833,2660.8,2660.5,0.04429196]
[1727217552194,6.75833,2660.8,2660.3,3.75892]
[1727217552594,3.0,2660.8,2660.4,3.80311343]
[1727217553156,3.78457048,2661.0,2660.6,3.75851]
[1727217553453,3.78457048,2661.0,2660.4,4.64232077]
[1727217553454,7.54262048,2661.0,2660.7,0.04440153]
[1727217553662,6.75805,2661.0,2660.7,0.04440153]
[1727217553859,6.75805,2661.0,2660.5,3.75868]
[1727217554056,6.75805,2661.0,2660.8,0.04433008]
[1727217554260,6.75805,2661.0,2660.5,3.75868]
[1727217554589,6.75805,2661.0,2660.9,0.04418699]
[1727217554906,6.75805,2661.0,2660.5,3.75868]
[1727217554907,3.0,2660.8,2660.5,3.75868]
[1727217555260,3.75815,2660.9,2660.5,3.75868]
[1727217555708,3.75815,2660.9,2660.4,7.51748]
[1727217555873,3.0,2661.0,2660.5,0.8294]
[1727217556073,3.75786,2661.1,2660.5,1.288217]
[1727217556384,3.75786,2661.1,2660.5,0.8294]
[1727217556897,4.65476928,2661.3,2660.5,0.8294]
[1727217557194,5.37779134,2661.2,2660.7,3.75834]
[1727217557511,5.37779134,2661.2,2660.1,4.58856]
[1727217557512,3.75853,2660.7,2660.1,4.58856]
[1727217557714,3.75864,2660.6,2660.1,8.34773]
[1727217558012,3.7587,2660.5,2660.1,4.58856]
[1727217558493,3.75857,2660.6,2660.1,4.58856]
[1727217558695,3.75857,2660.6,2660.1,0.8294]
[1727217558696,3.75873,2660.5,2660.1,0.8294]
[1727217559013,3.75857,2660.6,2660.0,3.75932]
[1727217559014,3.75884,2660.4,2660.0,3.7593]
[1727217559317,3.75885,2660.4,2660.0,3.7593]
[1727217559458,3.1013988,2660.2,2659.9,2.0]
[1727217559669,0.55,2660.2,2659.9,2.0]
[1727217559899,4.30919,2660.2,2659.9,2.0]
[1727217560273,5.31242048,2660.3,2659.9,2.0]
[1727217560274,3.75898,2660.3,2659.9,2.0]
[1727217560703,7.51806,2660.3,2659.9,2.0]
[1727217560917,3.75898,2660.3,2659.9,2.0]
[1727217561260,3.75939,2660.0,2659.9,2.0]
[1727217561620,4.52819,2660.0,2659.9,2.0]
[1727217562420,0.7688,2660.0,2659.9,2.0]
[1727217563007,8.15373552,2660.0,2659.9,2.0]
[1727217563178,9.69854605,2660.0,2659.9,0.0010751]
[1727217563373,12.41385014,2660.0,2659.9,0.0010751]
[1727217563714,12.81198075,2660.0,2659.9,0.0010751]
[1727217563876,11.62968718,2660.0,2659.9,0.0010751]
[1727217564207,12.41399199,2660.0,2659.9,0.0010751]
[1727217565382,12.39949656,2660.0,2659.9,0.0010751]
[1727217566267,6.34228538,2660.0,2659.9,0.0010751]
[1727217566492,9.45933113,2660.0,2659.9,0.04281818]
[1727217566704,9.45933113,2660.0,2659.9,0.0010751]
[1727217567005,9.45933113,2660.0,2659.9,0.04281818]
[1727217567315,9.45933113,2660.0,2659.9,0.0010751]
[1727217567810,10.1018785,2660.0,2659.9,0.0010751]
[1727217568105,10.1018754,2660.0,2659.9,0.0010751]
[1727217568307,9.45933113,2660.0,2659.9,0.0010751]
[1727217568465,5.69994113,2660.0,2659.9,0.0010751]
[1727217568668,3.75912,2660.2,2659.9,0.0010751]
[1727217568875,3.75933,2660.1,2659.9,0.0436767]
[1727217569100,7.51868,2660.1,2659.9,0.0010751]
[1727217569275,6.8607288,2660.1,2660.0,0.0425301]
[1727217569476,0.7688,2660.0,2659.4,0.0389564]
[1727217569820,11.96460361,2659.5,2659.4,0.0389564]
[1727217569972,15.64248263,2659.5,2659.4,0.0389564]
[1727217570175,14.07263975,2659.5,2659.4,0.0389564]
[1727217570370,16.20901079,2659.5,2659.4,0.0389564]
[1727217570687,17.77885367,2659.5,2659.4,0.0389564]
[1727217570994,16.09959676,2659.5,2659.4,0.0389564]
[1727217571567,16.20821083,2659.5,2659.4,0.0389564]
[1727217571869,15.70718366,2659.5,2659.4,0.0389564]
[1727217572068,13.95926809,2659.5,2659.4,0.0389564]
[1727217572402,13.31666984,2659.5,2659.4,0.0389564]
[1727217574321,9.55656984,2659.5,2659.4,0.0389564]
[1727217575367,9.55656984,2659.5,2659.4,0.07770102]
[1727217575921,15.173737,2659.8,2659.4,0.07770102]
[1727217576072,7.30982,2659.7,2659.4,0.07770102]
[1727217576281,3.55,2659.7,2659.4,0.07770102]
[1727217577725,3.55,2659.7,2659.4,0.0389564]
[1727217578003,3.55,2659.7,2659.5,0.03886148]
[1727217579008,4.7463917,2659.7,2659.5,0.03886148]
[1727217579839,8.5062417,2659.7,2659.5,0.03886148]
[1727217580132,4.7463917,2659.7,2659.5,0.03886148]
[1727217581202,3.55,2659.7,2659.5,0.03886148]
[1727217581398,6.6513988,2659.7,2659.5,0.03886148]
[1727217582883,0.05651472,2659.6,2659.5,0.03886148]
[1727217583521,0.70051908,2659.6,2659.5,0.03886148]
[1727217583897,0.70051182,2659.6,2659.5,3.79896148]
[1727217584426,0.05651472,2659.6,2659.5,3.79896148]
[1727217587614,0.05651472,2659.6,2659.5,4.63811527]
[1727217592437,0.05651472,2659.6,2659.5,3.79896148]
[1727217600213,0.05651472,2659.6,2659.5,4.60436148]
[1727217601259,0.05651472,2659.6,2659.5,4.67955345]
[1727217601456,0.05651472,2659.6,2659.5,4.60436148]
[1727217604751,0.05651472,2659.6,2659.5,5.10436148]
[1727217604951,0.05651472,2659.6,2659.5,5.99471527]
[1727217608879,0.05651472,2659.6,2659.5,6.49471527]
[1727217610479,1.6121182,2659.6,2659.5,0.07065658]
[1727217610638,7.93257253,2659.6,2658.7,3.76112]
[1727217610837,0.78748953,2659.2,2658.8,3.76108]
[1727217611075,1.61558953,2659.1,2658.8,3.76108]
[1727217611277,1.61558953,2659.1,2658.7,3.76112]
[1727217611278,3.23396666,2659.1,2658.7,3.76112]
[1727217611440,0.65231783,2659.0,2658.9,3.76092]
[1727217612352,1.61558953,2659.1,2658.9,3.76095]
[1727217612675,0.6522697,2659.0,2658.9,3.76095]
[1727217613054,1.61558953,2659.1,2658.9,3.76095]
[1727217613255,1.61558953,2659.1,2659.0,3.76081]
[1727217613458,0.65222669,2659.1,2659.0,3.76081]
[1727217614009,1.61558953,2659.3,2659.0,3.76081]
[1727217614310,2.41792828,2659.2,2659.1,3.76067]
[1727217614804,1.63046786,2659.2,2659.0,3.76081]
[1727217615004,1.63046786,2659.2,2658.9,3.76095]
[1727217615005,2.41795739,2659.2,2658.9,3.76095]
[1727217615213,0.65218714,2659.1,2658.8,3.761]
[1727217615368,0.78748953,2659.1,2658.8,3.761]
[1727217615574,2.41795418,2659.1,2658.8,3.761]
[1727217615785,0.65218714,2659.0,2658.8,3.761]
[1727217616081,0.78748953,2659.1,2658.8,3.761]
[1727217616307,2.41823765,2659.0,2658.8,3.761]
[1727217616477,0.78748953,2659.0,2658.8,3.761]
[1727217617104,0.78748953,2659.1,2658.8,7.52202]
[1727217617306,2.41837516,2659.1,2658.8,7.52202]
[1727217617510,2.41837516,2659.0,2658.8,7.52202]
[1727217617742,0.78748953,2659.0,2658.8,7.52202]
[1727217617953,0.78748953,2659.0,2658.8,3.761]
[1727217618449,0.78748953,2659.0,2658.6,3.76129]
[1727217618450,0.86303505,2658.9,2658.6,3.76137]
[1727217618649,0.78764993,2658.8,2658.6,3.76137]
[1727217619010,1.76623452,2658.7,2658.6,3.76137]
[1727217619230,2.59433452,2658.7,2658.6,3.76137]
[1727217619425,1.76623452,2658.7,2658.6,3.76137]
[1727217619643,1.76623452,2658.7,2658.6,4.56307]
[1727217619848,2.41862424,2658.8,2658.7,3.76123]
[1727217620453,0.97858459,2658.8,2658.7,3.76123]
[1727217620644,0.78764993,2659.0,2658.9,3.76095]
[1727217620953,1.1761354,2659.1,2658.9,3.76087]
[1727217621114,1.1761354,2659.1,2658.9,7.52174]
[1727217621345,1.1761354,2659.1,2659.0,3.76081]
[1727217621639,1.1761354,2659.1,2659.0,4.512978]
[1727217623057,1.1761354,2659.1,2659.0,3.76081]
[1727217625320,0.65250698,2659.1,2659.0,3.76081]
[1727217625519,0.78747209,2659.2,2659.1,3.76067]
[1727217625757,1.76626574,2659.2,2659.1,3.76067]
[1727217625962,2.80745815,2659.2,2658.8,3.76103]
[1727217626164,2.41885375,2659.1,2658.8,3.76103]
[1727217626464,3.21225375,2659.0,2658.8,3.76103]
[1727217626769,0.65255329,2658.9,2658.8,3.76102]
[1727217627318,1.580931,2659.0,2658.7,3.76123]
[1727217627319,1.580931,2659.0,2658.9,3.76095]
[1727217627560,1.580931,2659.0,2658.8,3.76102]
[1727217627729,3.21221343,2659.0,2658.8,3.76102]
[1727217627931,0.65251297,2658.9,2658.8,3.76102]
[1727217628139,0.6525166,2658.9,2658.8,3.76102]
[1727217628450,0.65249047,2658.9,2658.8,3.76102]
[1727217628761,1.580931,2659.0,2658.8,3.76102]
[1727217629118,0.787531,2659.1,2659.0,3.76081]
[1727217629319,0.787531,2659.2,2659.0,3.76081]
[1727217629630,0.787531,2659.2,2659.1,3.76067]
[1727217629833,0.65239244,2659.2,2659.1,3.76067]
[1727217630050,0.787531,2659.3,2659.2,3.76052]
[1727217630961,1.76607104,2659.3,2659.0,3.76079]
[1727217631161,1.63092624,2659.2,2659.0,3.7607]
[1727217631471,2.41850348,2659.1,2659.0,3.7607]
[1727217632022,2.41850348,2659.1,2659.0,3.83054469]
[1727217632770,2.41845557,2659.1,2659.0,0.06984469]
[1727217632950,2.20471263,2659.1,2659.0,0.06984469]
[1727217633263,2.85708205,2659.1,2658.9,3.76095]
[1727217633458,1.22615748,2659.1,2659.0,0.07023167]
[1727217633868,2.85704311,2659.1,2658.8,3.761]
[1727217634071,1.22615748,2659.1,2659.0,0.07023167]
[1727217634278,1.22615748,2659.1,2658.9,0.07030467]
[1727217634483,0.43880389,2659.1,2659.0,0.07023167]
[1727217634685,1.61493929,2659.1,2658.8,3.761]
[1727217634981,0.78724587,2659.0,2658.9,0.07030467]
[1727217635142,1.26988554,2659.0,2658.9,0.07030467]
[1727217635343,2.9006971,2659.0,2658.9,0.07030467]
[1727217636798,1.63081156,2659.0,2658.9,0.07030467]
[1727217637002,0.78724587,2659.0,2658.9,0.07030467]
[1727217637174,2.41805743,2659.0,2658.8,3.76109]
[1727217637369,0.78724587,2659.0,2658.9,0.07037985]
[1727217638001,2.41774885,2659.0,2658.9,0.07037985]
[1727217638723,0.65220119,2659.0,2658.9,0.07037985]
[1727217638872,0.65220119,2659.0,2658.9,3.76095]
[1727217639076,0.78724587,2659.1,2658.9,3.83132985]
[1727217639279,0.65251922,2659.1,2659.0,3.76081]
[1727217639477,0.78724587,2659.2,2659.1,3.76067]
[1727217639678,0.78724587,2659.2,2659.1,3.83090384]
[1727217640111,1.63119468,2659.2,2659.1,3.83090384]
[1727217640317,2.41838721,2659.2,2659.1,3.83090384]
[1727217640514,1.63114134,2659.2,2659.1,3.83090384]
[1727217640701,2.41810377,2659.2,2659.1,3.83090384]
[1727217641306,0.78696243,2659.2,2659.1,0.07023384]
[1727217641630,2.41810377,2659.2,2659.1,0.07023384]
[1727217641934,2.41810377,2659.2,2658.9,3.76085]
[1727217641935,2.41810377,2659.2,2659.0,3.76081]
[1727217642137,0.78696243,2659.2,2659.1,0.07023384]
[1727217642631,1.7656826,2659.2,2659.1,0.07023384]
[1727217642839,2.41816271,2659.2,2659.1,0.07023384]
[1727217643635,2.41816271,2659.2,2659.1,3.83090384]
[1727217644550,1.7656826,2659.2,2659.1,3.83090384]
[1727217644724,0.78696243,2659.2,2659.1,3.83090384]
[1727217646006,2.41816271,2659.2,2659.1,3.83090384]
[1727217646439,0.65248011,2659.2,2659.1,3.83090384]
[1727217646734,0.65315211,2659.2,2659.1,3.83090384]
[1727217647111,0.78696243,2659.5,2659.2,3.76052]
[1727217647303,0.78707717,2659.6,2659.5,3.7601]
[1727217647504,0.97959299,2659.6,2659.5,3.7601]
[1727217647711,2.41989795,2659.6,2659.5,3.8276243]
[1727217647949,1.63265498,2659.6,2659.5,3.8276243]
[1727217648151,0.65306199,2659.6,2659.5,3.8276243]
[1727217648356,0.78724538,2659.7,2659.6,3.75996]
[1727217648657,1.76728062,2659.7,2659.6,3.75996]
[1727217648958,2.42063744,2659.7,2659.6,3.82730609]
[1727217649512,0.78724538,2659.7,2659.6,3.82730609]
[1727217649926,2.42063744,2659.7,2659.6,3.82730609]
[1727217650121,0.78724538,2659.8,2659.7,3.75982]
[1727217650326,0.78724538,2659.8,2659.7,3.82698416]
[1727217650525,0.65348042,2659.8,2659.7,3.82698416]
[1727217650755,0.78724538,2660.0,2659.8,0.7684]
[1727217650940,2.42088783,2659.9,2659.8,4.52808]
[1727217651119,1.44070236,2659.9,2659.8,4.5951186]
[1727217651315,0.78724538,2659.9,2659.8,4.5951186]
[1727217652448,1.4407017,2659.9,2659.8,4.5951186]
[1727217652656,1.6336408,2659.9,2659.8,4.5951186]
[1727217652816,0.78724538,2659.9,2659.8,4.5951186]
[1727217653153,0.78724538,2659.9,2659.8,4.52808]
[1727217653516,0.78724538,2659.9,2659.8,4.5951186]
[1727217653814,1.1761354,2660.1,2659.8,4.5950986]
[1727217654022,0.78768018,2659.9,2659.8,4.5950986]
[1727217654216,0.78768018,2660.0,2659.9,3.75953]
[1727217654438,1.63402973,2660.0,2659.8,0.0670386]
[1727217654748,0.8278,2659.2,2657.8,0.82309026]
[1727217654942,0.8278,2659.2,2658.3,3.76175]
[1727217654943,0.78822032,2658.4,2658.3,3.76175]
[1727217655154,1.44183221,2658.4,2658.3,0.05679031]
[1727217655348,0.65361189,2658.4,2658.3,3.81859031]
[1727217655563,1.44196058,2658.4,2658.3,0.05679031]
[1727217655748,0.98123399,2658.4,2658.3,0.05679031]
[1727217656058,6.31322942,2658.4,2657.8,0.0389564]
[1727217656351,1.18267438,2658.2,2657.9,3.76229]
[1727217656546,2.43530179,2658.1,2657.8,0.0389564]
[1727217656763,0.78844959,2658.2,2657.9,3.81944253]
[1727217656965,1.44692657,2658.2,2658.1,3.76208]
[1727217657337,2.43464532,2658.2,2658.1,3.81954638]
[1727217657835,1.44692657,2658.2,2658.1,3.81954638]
[1727217658077,0.78844959,2658.2,2658.1,3.81954638]
[1727217658451,0.65847698,2658.2,2658.1,3.81954638]
[1727217658950,0.78844959,2658.3,2658.1,3.81944638]
[1727217659149,1.77563954,2658.3,2658.1,3.81944638]
[1727217659375,0.65813785,2658.2,2658.1,3.81944638]
[1727217659674,0.65799221,2658.2,2658.1,3.81944638]
[1727217659882,0.65799221,2658.2,2658.1,0.05746638]
[1727217659883,2.43342081,2658.2,2658.1,0.05746638]
[1727217660050,1.77543232,2658.2,2658.1,0.05746638]
[1727217660252,1.77543232,2658.2,2658.0,3.76222]
[1727217660449,0.78844959,2658.2,2658.1,0.05746262]
[1727217660665,1.77542698,2658.2,2658.1,0.05746262]
[1727217661339,0.65798493,2658.2,2658.1,0.05746262]
[1727217661544,0.78844959,2658.3,2658.1,0.05746262]
[1727217661868,5.5345411,2658.3,2658.1,0.05746262]
[1727217662087,6.97821056,2658.2,2658.1,0.05746262]
[1727217662243,3.76213,2658.1,2657.8,0.0389564]
[1727217662444,6.19423208,2658.0,2657.8,0.0389564]
[1727217662752,0.65775015,2657.9,2657.8,0.0389564]
[1727217663155,0.78728111,2658.0,2657.8,0.0389564]
[1727217663580,1.44482387,2658.0,2657.8,0.0389564]
[1727217663909,0.78728111,2658.0,2657.8,0.0389564]
[1727217664083,4.62497663,2658.1,2657.8,0.0389564]
[1727217664381,0.6577216,2658.0,2657.8,0.0389564]
[1727217664553,2.25370531,2658.1,2657.8,0.0389564]
[1727217664757,0.65766751,2658.0,2657.8,0.0389564]
[1727217665143,2.25370531,2658.1,2657.8,0.0389564]
[1727217665455,6.01580531,2658.1,2657.8,0.0389564]
[1727217665677,9.11720411,2658.1,2657.8,0.0389564]
[1727217666190,5.2285242,2658.1,2657.8,0.0389564]
[1727217666358,8.329923,2658.1,2657.8,0.0389564]
[1727217667697,4.567823,2658.1,2657.8,0.0389564]
[1727217668052,8.329943,2658.1,2657.8,0.0389564]
[1727217668781,1.57038111,2658.2,2657.9,0.05454559]
[1727217668986,4.57038111,2658.4,2658.0,3.7621]
[1727217669171,0.65703962,2658.3,2657.9,0.05454559]
[1727217669365,0.65703962,2658.3,2658.1,0.05439947]
[1727217669593,0.65703962,2658.3,2658.0,0.05447253]
[1727217669803,0.65703962,2658.3,2658.2,0.05432642]
[1727217669964,0.65703962,2658.3,2657.9,3.76229]
[1727217669965,0.65703962,2658.3,2658.1,0.05439947]
[1727217670163,7.51749926,2658.3,2658.2,0.05432642]
[1727217670370,10.61889806,2658.3,2658.2,0.05432642]
[1727217670605,10.61889806,2658.3,2657.8,3.8014364]
[1727217670606,7.25389122,2658.3,2657.8,0.0389564]
[1727217670904,8.12492896,2658.2,2657.8,0.0389564]